[Event "*** Titled Tuesday Blitz"]
[Site "Chess.com"]
[Date "2021.04.27"]
[Round "4"]
[White "WiktoriaPOL"]
[Black "I_am_a_Miracle"]
[Result "0-1"]
[WhiteElo "2043"]
[BlackElo "2379"]
[TimeControl "180+1"]
[EndTime "10:38:01 PDT"]
[Termination "I_am_a_Miracle won by resignation"]

1. e4 {[%clk 0:03:00.9]} 1... g6 {[%clk 0:03:00]} 2. d4 {[%clk 0:03:00.2]} 2...
Bg7 {[%clk 0:03:00.3]} 3. Nc3 {[%clk 0:03:00.4]} 3... d6 {[%clk 0:03:00.2]} 4.
Be3 {[%clk 0:02:58.7]} 4... a6 {[%clk 0:03:00.2]} 5. Qd2 {[%clk 0:02:58.4]} 5...
b5 {[%clk 0:03:00]} 6. h4 {[%clk 0:02:54.8]} 6... h6 {[%clk 0:03:00.2]} 7. h5
{[%clk 0:02:51.7]} 7... g5 {[%clk 0:03:00.1]} 8. f4 {[%clk 0:02:51.1]} 8... gxf4
{[%clk 0:02:59.5]} 9. Bxf4 {[%clk 0:02:52]} 9... Bb7 {[%clk 0:02:56.3]} 10. Nf3
{[%clk 0:02:50]} 10... Nd7 {[%clk 0:02:45.8]} 11. Rh3 {[%clk 0:02:43.2]} 11...
e6 {[%clk 0:02:33.4]} 12. Rg3 {[%clk 0:02:39.6]} 12... Bf8 {[%clk 0:02:33.1]}
13. Bd3 {[%clk 0:02:33.6]} 13... c5 {[%clk 0:02:17.7]} 14. d5 {[%clk 0:02:32.5]}
14... e5 {[%clk 0:02:16.5]} 15. Be3 {[%clk 0:02:30.1]} 15... Ngf6 {[%clk
0:02:13.2]} 16. Rh3 {[%clk 0:02:21.8]} 16... c4 {[%clk 0:02:12.5]} 17. Bf1
{[%clk 0:02:15]} 17... b4 {[%clk 0:02:04.9]} 18. Ne2 {[%clk 0:02:13.2]} 18...
Nxe4 {[%clk 0:02:03.3]} 19. Qxb4 {[%clk 0:02:12]} 19... Bxd5 {[%clk 0:02:03.1]}
20. Nc3 {[%clk 0:02:05.3]} 20... Nxc3 {[%clk 0:02:00.7]} 21. Qxc3 {[%clk
0:02:06.2]} 21... Be6 {[%clk 0:01:52]} 22. Rg3 {[%clk 0:01:59.8]} 22... Nf6
{[%clk 0:01:45.6]} 23. Nd2 {[%clk 0:01:43.3]} 23... d5 {[%clk 0:01:40.6]} 24.
Bg1 {[%clk 0:01:19.3]} 24... Rb8 {[%clk 0:01:31.4]} 25. b3 {[%clk 0:01:07.9]}
25... Bb4 {[%clk 0:01:08.9]} 26. Qf3 {[%clk 0:01:00.7]} 26... Ne4 {[%clk
0:01:01.6]} 27. Be3 {[%clk 0:00:55.3]} 27... Qh4 {[%clk 0:00:55.1]} 28. O-O-O
{[%clk 0:00:49.3]} 28... Qxg3 {[%clk 0:00:45.2]} 29. Nxe4 {[%clk 0:00:48.7]}
29... Qxf3 {[%clk 0:00:44.2]} 30. gxf3 {[%clk 0:00:47.5]} 30... dxe4 {[%clk
0:00:44.2]} 31. fxe4 {[%clk 0:00:48.4]} 31... cxb3 {[%clk 0:00:42.7]} 0-1

[Event "*** Titled Tuesday Blitz"]
[Site "Chess.com"]
[Date "2021.04.27"]
[Round "4"]
[White "Hypercar"]
[Black "kubal123"]
[Result "1-0"]
[WhiteElo "2603"]
[BlackElo "2284"]
[TimeControl "180+1"]
[EndTime "10:38:02 PDT"]
[Termination "Hypercar won on time"]

1. d4 {[%clk 0:03:00.9]} 1... Nf6 {[%clk 0:02:59.3]} 2. Nf3 {[%clk 0:03:01.8]}
2... g6 {[%clk 0:02:59.4]} 3. g3 {[%clk 0:03:02.1]} 3... Bg7 {[%clk 0:02:59.8]}
4. Bg2 {[%clk 0:03:03]} 4... O-O {[%clk 0:03:00.1]} 5. O-O {[%clk 0:03:03.9]}
5... d6 {[%clk 0:02:59.7]} 6. c4 {[%clk 0:03:04.2]} 6... e5 {[%clk 0:02:59.6]}
7. dxe5 {[%clk 0:03:03.6]} 7... Ne4 {[%clk 0:02:56.4]} 8. exd6 {[%clk
0:03:00.9]} 8... Nxd6 {[%clk 0:02:51.1]} 9. Na3 {[%clk 0:02:58.5]} 9... Nc6
{[%clk 0:02:48.6]} 10. Ne1 {[%clk 0:02:49.2]} 10... Be6 {[%clk 0:02:46.9]} 11.
Bd5 {[%clk 0:02:47]} 11... Qe7 {[%clk 0:02:43.3]} 12. Nd3 {[%clk 0:02:43.6]}
12... Rad8 {[%clk 0:02:38.5]} 13. Bxc6 {[%clk 0:02:41.5]} 13... bxc6 {[%clk
0:02:37.2]} 14. Qc2 {[%clk 0:02:40.3]} 14... Bh3 {[%clk 0:02:28.5]} 15. Re1
{[%clk 0:02:39.2]} 15... Nf5 {[%clk 0:01:48.7]} 16. e3 {[%clk 0:02:28.9]} 16...
Qe4 {[%clk 0:01:38.7]} 17. Nf4 {[%clk 0:02:27.3]} 17... Qxc2 {[%clk 0:01:03.4]}
18. Nxc2 {[%clk 0:02:26]} 18... Bg4 {[%clk 0:01:03.9]} 19. Kg2 {[%clk
0:02:26.1]} 19... Nd6 {[%clk 0:01:00.9]} 20. f3 {[%clk 0:02:22.1]} 20... Be6
{[%clk 0:00:50.4]} 21. Nxe6 {[%clk 0:02:20.8]} 21... fxe6 {[%clk 0:00:49.3]} 22.
Na3 {[%clk 0:02:20.5]} 22... Rb8 {[%clk 0:00:39.3]} 23. Rb1 {[%clk 0:02:19.8]}
23... Rb4 {[%clk 0:00:34.6]} 24. b3 {[%clk 0:02:18.4]} 24... a5 {[%clk
0:00:20.7]} 25. Bd2 {[%clk 0:02:17.5]} 25... Rb7 {[%clk 0:00:14.9]} 26. Nc2
{[%clk 0:02:16.1]} 26... a4 {[%clk 0:00:14.4]} 27. Nd4 {[%clk 0:02:15.7]} 27...
Bxd4 {[%clk 0:00:09.8]} 28. exd4 {[%clk 0:02:15]} 28... axb3 {[%clk 0:00:10.3]}
29. axb3 {[%clk 0:02:15.9]} 29... Kf7 {[%clk 0:00:09.4]} 30. Rec1 {[%clk
0:02:09.1]} 30... Rfb8 {[%clk 0:00:09.5]} 31. b4 {[%clk 0:02:08.7]} 31... Ra7
{[%clk 0:00:06.6]} 32. Rb2 {[%clk 0:02:06.8]} 32... Rba8 {[%clk 0:00:05.9]} 33.
Kf2 {[%clk 0:02:06.4]} 33... Ra2 {[%clk 0:00:06]} 34. Rxa2 {[%clk 0:02:05.9]}
34... Rxa2 {[%clk 0:00:06.5]} 35. Ke3 {[%clk 0:02:06.2]} 35... Ra3+ {[%clk
0:00:05.8]} 36. Ke2 {[%clk 0:02:03.5]} 36... Ra2 {[%clk 0:00:05.7]} 37. Kd3
{[%clk 0:01:56]} 37... Ra3+ {[%clk 0:00:05.4]} 38. Rc3 {[%clk 0:01:53.4]} 38...
Ra1 {[%clk 0:00:04.2]} 39. Rb3 {[%clk 0:01:51.3]} 39... Rh1 {[%clk 0:00:03.8]}
40. h4 {[%clk 0:01:49.7]} 40... Rh3 {[%clk 0:00:03.6]} 41. Bf4 {[%clk
0:01:49.8]} 41... Nf5 {[%clk 0:00:02.6]} 42. b5 {[%clk 0:01:47.3]} 42... Nxg3
{[%clk 0:00:01.9]} 43. bxc6 {[%clk 0:01:45.5]} 1-0

[Event "*** Titled Tuesday Blitz"]
[Site "Chess.com"]
[Date "2021.04.27"]
[Round "4"]
[White "Triumphmate"]
[Black "rachidhuilda"]
[Result "1-0"]
[WhiteElo "2445"]
[BlackElo "2256"]
[TimeControl "180+1"]
[EndTime "10:38:02 PDT"]
[Termination "Triumphmate won by checkmate"]

1. e4 {[%clk 0:03:00.9]} 1... d5 {[%clk 0:02:59.5]} 2. exd5 {[%clk 0:03:00.3]}
2... Qxd5 {[%clk 0:03:00.1]} 3. Nc3 {[%clk 0:03:00.5]} 3... Qa5 {[%clk
0:03:00.4]} 4. g3 {[%clk 0:03:00.6]} 4... c6 {[%clk 0:03:00.6]} 5. Bg2 {[%clk
0:03:01.2]} 5... Nf6 {[%clk 0:03:01.2]} 6. Nge2 {[%clk 0:03:01]} 6... Bf5 {[%clk
0:02:55.2]} 7. d3 {[%clk 0:03:01.1]} 7... e6 {[%clk 0:02:55.5]} 8. Be3 {[%clk
0:03:01.3]} 8... Nbd7 {[%clk 0:02:53.9]} 9. Qd2 {[%clk 0:03:01.3]} 9... Be7
{[%clk 0:02:51.3]} 10. O-O-O {[%clk 0:02:58.3]} 10... O-O {[%clk 0:02:50]} 11.
h3 {[%clk 0:02:57.9]} 11... Nd5 {[%clk 0:02:38.4]} 12. g4 {[%clk 0:02:55.4]}
12... Bg6 {[%clk 0:02:38.6]} 13. h4 {[%clk 0:02:51.7]} 13... h5 {[%clk
0:02:29.9]} 14. Bxd5 {[%clk 0:02:44.1]} 14... cxd5 {[%clk 0:02:27.7]} 15. Ng3
{[%clk 0:02:45]} 15... Bb4 {[%clk 0:01:48.3]} 16. gxh5 {[%clk 0:02:14.4]} 16...
Bh7 {[%clk 0:01:24.8]} 17. Kb1 {[%clk 0:01:59.4]} 17... Rac8 {[%clk 0:01:14.9]}
18. Rdg1 {[%clk 0:01:29.7]} 18... Rxc3 {[%clk 0:01:11.6]} 19. Bd4 {[%clk
0:00:59.6]} 19... Rxd3 {[%clk 0:00:51.6]} 20. Nf5 {[%clk 0:00:22.4]} 20... Rxd2
{[%clk 0:00:41.9]} 21. Nh6+ {[%clk 0:00:19.6]} 21... Kh8 {[%clk 0:00:41.2]} 22.
Bxg7# {[%clk 0:00:20.5]} 1-0

[Event "*** Titled Tuesday Blitz"]
[Site "Chess.com"]
[Date "2021.04.27"]
[Round "4"]
[White "Grineva_Marianna"]
[Black "JoseRemolar"]
[Result "0-1"]
[WhiteElo "2230"]
[BlackElo "2433"]
[TimeControl "180+1"]
[EndTime "10:38:05 PDT"]
[Termination "JoseRemolar won by resignation"]

1. e4 {[%clk 0:03:00.9]} 1... c5 {[%clk 0:02:59.1]} 2. Nf3 {[%clk 0:03:01.1]}
2... d6 {[%clk 0:02:58.7]} 3. d4 {[%clk 0:03:01.6]} 3... cxd4 {[%clk 0:02:59.6]}
4. Nxd4 {[%clk 0:03:02.2]} 4... Nf6 {[%clk 0:03:00.1]} 5. Nc3 {[%clk 0:03:02.6]}
5... a6 {[%clk 0:03:00.6]} 6. f3 {[%clk 0:03:02.1]} 6... e5 {[%clk 0:02:55.6]}
7. Nb3 {[%clk 0:03:01.9]} 7... Be6 {[%clk 0:02:53.3]} 8. Be3 {[%clk 0:03:02.3]}
8... Be7 {[%clk 0:02:53.4]} 9. Qd2 {[%clk 0:02:59.2]} 9... O-O {[%clk
0:02:52.4]} 10. g4 {[%clk 0:02:59.1]} 10... b5 {[%clk 0:02:51.4]} 11. O-O-O
{[%clk 0:02:51.9]} 11... Nbd7 {[%clk 0:02:47.2]} 12. g5 {[%clk 0:02:52.1]} 12...
b4 {[%clk 0:02:47]} 13. Na4 {[%clk 0:02:28.6]} 13... Nh5 {[%clk 0:02:43.2]} 14.
h4 {[%clk 0:02:21.2]} 14... Qc7 {[%clk 0:02:35.6]} 15. Kb1 {[%clk 0:02:07]}
15... Rfc8 {[%clk 0:02:33.6]} 16. Bd3 {[%clk 0:01:45.6]} 16... Nc5 {[%clk
0:02:29.6]} 17. Naxc5 {[%clk 0:01:30.6]} 17... dxc5 {[%clk 0:02:30.5]} 18. Nc1
{[%clk 0:01:07.1]} 18... c4 {[%clk 0:02:25.8]} 19. Be2 {[%clk 0:01:07.3]} 19...
c3 {[%clk 0:02:13.4]} 20. bxc3 {[%clk 0:00:52.6]} 20... bxc3 {[%clk 0:02:14.3]}
21. Qe1 {[%clk 0:00:48.2]} 21... Bxa2+ {[%clk 0:01:24.6]} 22. Kxa2 {[%clk
0:00:30.4]} 22... Qa5+ {[%clk 0:01:18.8]} 23. Kb1 {[%clk 0:00:29.9]} 23... Qa3
{[%clk 0:01:15.4]} 24. Qxc3 {[%clk 0:00:18.2]} 24... Rxc3 {[%clk 0:01:11]} 25.
Bb6 {[%clk 0:00:16.4]} 25... Rb8 {[%clk 0:01:08.5]} 26. Nb3 {[%clk 0:00:15.8]}
26... Rxb6 {[%clk 0:01:04.8]} 27. Bc4 {[%clk 0:00:15.1]} 27... Rxc4 {[%clk
0:01:03.1]} 28. Rd7 {[%clk 0:00:14.5]} 28... Rxb3+ {[%clk 0:01:00.5]} 0-1

[Event "*** Titled Tuesday Blitz"]
[Site "Chess.com"]
[Date "2021.04.27"]
[Round "4"]
[White "TST2014"]
[Black "guillembaches"]
[Result "1-0"]
[WhiteElo "2675"]
[BlackElo "2506"]
[TimeControl "180+1"]
[EndTime "10:38:07 PDT"]
[Termination "TST2014 won on time"]

1. d4 {[%clk 0:03:00.9]} 1... Nf6 {[%clk 0:02:59.2]} 2. c4 {[%clk 0:03:00.5]}
2... e6 {[%clk 0:02:59.5]} 3. Nf3 {[%clk 0:03:00.3]} 3... d5 {[%clk 0:02:59]} 4.
Nc3 {[%clk 0:02:59.9]} 4... Be7 {[%clk 0:02:59.3]} 5. Bf4 {[%clk 0:02:59.1]}
5... O-O {[%clk 0:02:56.2]} 6. e3 {[%clk 0:02:58.9]} 6... Nbd7 {[%clk
0:02:53.5]} 7. c5 {[%clk 0:02:58.4]} 7... c6 {[%clk 0:02:53.4]} 8. Bd3 {[%clk
0:02:57.4]} 8... Nh5 {[%clk 0:02:52.4]} 9. b4 {[%clk 0:02:51.3]} 9... Nxf4
{[%clk 0:02:51.3]} 10. exf4 {[%clk 0:02:51.1]} 10... b6 {[%clk 0:02:49.6]} 11.
O-O {[%clk 0:02:48.6]} 11... Qc7 {[%clk 0:02:44.4]} 12. g3 {[%clk 0:02:47.8]}
12... a5 {[%clk 0:02:44.2]} 13. a3 {[%clk 0:02:46.5]} 13... Ba6 {[%clk 0:02:44]}
14. Qe2 {[%clk 0:02:43]} 14... Bxd3 {[%clk 0:02:42.5]} 15. Qxd3 {[%clk
0:02:43.9]} 15... Qb7 {[%clk 0:02:37.4]} 16. Rfb1 {[%clk 0:02:43]} 16... Ra7
{[%clk 0:02:22.1]} 17. Qe2 {[%clk 0:02:34.9]} 17... Bf6 {[%clk 0:02:14.8]} 18.
Ne5 {[%clk 0:02:30]} 18... Bxe5 {[%clk 0:01:58.6]} 19. fxe5 {[%clk 0:02:30.9]}
19... Rfa8 {[%clk 0:01:58.7]} 20. bxa5 {[%clk 0:02:18.2]} 20... b5 {[%clk
0:01:50.2]} 21. Qb2 {[%clk 0:02:03.4]} 21... Rxa5 {[%clk 0:01:49.9]} 22. a4
{[%clk 0:02:03.6]} 22... Qa7 {[%clk 0:01:41.5]} 23. Ra3 {[%clk 0:01:37.9]} 23...
Rb8 {[%clk 0:01:35]} 24. Rb3 {[%clk 0:01:35.8]} 24... Qa6 {[%clk 0:01:01.7]} 25.
axb5 {[%clk 0:01:35]} 25... cxb5 {[%clk 0:01:02.6]} 26. Nxb5 {[%clk 0:01:24.9]}
26... Ra2 {[%clk 0:00:57.3]} 27. Qc3 {[%clk 0:01:16.4]} 27... f6 {[%clk
0:00:32.1]} 28. c6 {[%clk 0:01:15.2]} 28... Nb6 {[%clk 0:00:31.5]} 29. c7 {[%clk
0:01:14.6]} 29... Rd8 {[%clk 0:00:31.6]} 30. cxd8=Q+ {[%clk 0:01:14]} 1-0

[Event "*** Titled Tuesday Blitz"]
[Site "Chess.com"]
[Date "2021.04.27"]
[Round "4"]
[White "Lenyas66"]
[Black "NoGalloNoParty"]
[Result "1-0"]
[WhiteElo "2489"]
[BlackElo "2354"]
[TimeControl "180+1"]
[EndTime "10:38:09 PDT"]
[Termination "Lenyas66 won by resignation"]

1. e4 {[%clk 0:03:00.9]} 1... c5 {[%clk 0:02:59.6]} 2. Nf3 {[%clk 0:03:00.5]}
2... e6 {[%clk 0:02:58.7]} 3. Nc3 {[%clk 0:02:59.8]} 3... Nc6 {[%clk 0:02:58.1]}
4. Bb5 {[%clk 0:02:57.4]} 4... Nd4 {[%clk 0:02:57.5]} 5. a4 {[%clk 0:02:56.8]}
5... g6 {[%clk 0:02:50.2]} 6. Nxd4 {[%clk 0:02:45.7]} 6... cxd4 {[%clk
0:02:49.5]} 7. Ne2 {[%clk 0:02:45.8]} 7... Bg7 {[%clk 0:02:48.7]} 8. O-O {[%clk
0:02:45.3]} 8... Ne7 {[%clk 0:02:42.8]} 9. c3 {[%clk 0:02:41.5]} 9... a6 {[%clk
0:02:30.7]} 10. Bd3 {[%clk 0:02:40.6]} 10... Nc6 {[%clk 0:02:29.9]} 11. f4
{[%clk 0:02:40.6]} 11... d6 {[%clk 0:02:28.3]} 12. Kh1 {[%clk 0:02:25.4]} 12...
O-O {[%clk 0:02:27]} 13. Qe1 {[%clk 0:02:06.9]} 13... b6 {[%clk 0:02:15.7]} 14.
Qf2 {[%clk 0:02:06.5]} 14... dxc3 {[%clk 0:02:04.5]} 15. dxc3 {[%clk 0:02:04.8]}
15... Bb7 {[%clk 0:02:04.1]} 16. Be3 {[%clk 0:02:03.7]} 16... b5 {[%clk
0:01:44.5]} 17. axb5 {[%clk 0:01:53.4]} 17... axb5 {[%clk 0:01:44]} 18. Bxb5
{[%clk 0:01:53.5]} 18... Qe7 {[%clk 0:01:24.2]} 19. Rxa8 {[%clk 0:01:45.8]}
19... Rxa8 {[%clk 0:01:22.5]} 20. Ng3 {[%clk 0:01:39.7]} 20... f5 {[%clk
0:01:19.2]} 21. Rd1 {[%clk 0:01:33.8]} 21... Nd8 {[%clk 0:01:14.3]} 22. exf5
{[%clk 0:01:27.7]} 22... exf5 {[%clk 0:01:12.2]} 23. Bd4 {[%clk 0:01:21.1]}
23... Ne6 {[%clk 0:01:05.5]} 24. Bxg7 {[%clk 0:01:20]} 24... Kxg7 {[%clk
0:01:05.2]} 25. Re1 {[%clk 0:01:12]} 25... Qf6 {[%clk 0:00:47.8]} 26. Qb6 {[%clk
0:01:10.1]} 26... Rb8 {[%clk 0:00:22.6]} 27. Qxd6 {[%clk 0:01:06.4]} 27... Bxg2+
{[%clk 0:00:07.8]} 28. Kxg2 {[%clk 0:01:05.8]} 28... Rxb5 {[%clk 0:00:07.8]} 29.
Qd7+ {[%clk 0:01:02.6]} 1-0

[Event "*** Titled Tuesday Blitz"]
[Site "Chess.com"]
[Date "2021.04.27"]
[Round "4"]
[White "Supernotar"]
[Black "dbrankovic68"]
[Result "1-0"]
[WhiteElo "2741"]
[BlackElo "2456"]
[TimeControl "180+1"]
[EndTime "10:38:15 PDT"]
[Termination "Supernotar won by resignation"]

1. d4 {[%clk 0:03:00.9]} 1... Nf6 {[%clk 0:02:59.1]} 2. c4 {[%clk 0:03:00.3]}
2... g6 {[%clk 0:02:59.4]} 3. Nc3 {[%clk 0:02:57.8]} 3... Bg7 {[%clk 0:02:59.9]}
4. e4 {[%clk 0:02:54.2]} 4... d6 {[%clk 0:03:00.1]} 5. Be2 {[%clk 0:02:54.6]}
5... O-O {[%clk 0:03:00.6]} 6. Nf3 {[%clk 0:02:54.9]} 6... e5 {[%clk 0:03:00.7]}
7. O-O {[%clk 0:02:55.3]} 7... Na6 {[%clk 0:03:00.3]} 8. Bg5 {[%clk 0:02:54.6]}
8... h6 {[%clk 0:02:53.1]} 9. Bh4 {[%clk 0:02:54.3]} 9... exd4 {[%clk
0:02:42.8]} 10. Nxd4 {[%clk 0:02:54.1]} 10... Nc5 {[%clk 0:02:31.2]} 11. f3
{[%clk 0:02:53.2]} 11... a5 {[%clk 0:02:30.1]} 12. Rc1 {[%clk 0:02:47.9]} 12...
Re8 {[%clk 0:02:29.3]} 13. b3 {[%clk 0:02:46.8]} 13... c6 {[%clk 0:02:24.9]} 14.
Kh1 {[%clk 0:02:46.4]} 14... Qc7 {[%clk 0:02:13.4]} 15. Qd2 {[%clk 0:02:44.8]}
15... Kh7 {[%clk 0:02:08]} 16. Rfd1 {[%clk 0:02:44.8]} 16... Nh5 {[%clk
0:01:54.8]} 17. Bf1 {[%clk 0:02:39.7]} 17... Be5 {[%clk 0:01:54.1]} 18. Bf2
{[%clk 0:02:33]} 18... Bd7 {[%clk 0:01:51.5]} 19. Be3 {[%clk 0:02:31.3]} 19...
g5 {[%clk 0:01:51]} 20. Nde2 {[%clk 0:02:26]} 20... Rad8 {[%clk 0:01:49.1]} 21.
g3 {[%clk 0:02:16.6]} 21... Bc8 {[%clk 0:01:43.1]} 22. Bg2 {[%clk 0:02:16.4]}
22... Bg7 {[%clk 0:01:39.5]} 23. Nd4 {[%clk 0:02:13.9]} 23... Qe7 {[%clk
0:01:32.9]} 24. Bf2 {[%clk 0:02:11.5]} 24... g4 {[%clk 0:01:30]} 25. Re1 {[%clk
0:02:04.1]} 25... gxf3 {[%clk 0:01:28.8]} 26. Nxf3 {[%clk 0:01:58.8]} 26... Nf6
{[%clk 0:01:26.8]} 27. Qc2 {[%clk 0:01:49.9]} 27... Ng4 {[%clk 0:01:26.3]} 28.
Bg1 {[%clk 0:01:44.9]} 28... Nd7 {[%clk 0:01:21]} 29. Nd4 {[%clk 0:01:40.9]}
29... Nde5 {[%clk 0:01:19.2]} 30. Nf5 {[%clk 0:01:40.4]} 30... Bxf5 {[%clk
0:01:18.3]} 31. exf5 {[%clk 0:01:41.3]} 31... Qg5 {[%clk 0:01:15.7]} 32. f6+
{[%clk 0:01:37.3]} 32... Ng6 {[%clk 0:01:04.1]} 33. fxg7 {[%clk 0:01:35.3]}
33... Qh5 {[%clk 0:01:04.3]} 34. h3 {[%clk 0:01:23]} 34... Kxg7 {[%clk
0:01:04.1]} 35. Ne4 {[%clk 0:01:20.6]} 35... Re5 {[%clk 0:00:59.2]} 36. Bd4
{[%clk 0:01:16.8]} 36... Re8 {[%clk 0:00:58.9]} 37. Bxe5+ {[%clk 0:01:11.2]}
37... N6xe5 {[%clk 0:00:55.8]} 38. Nxd6 {[%clk 0:01:06.9]} 38... Rd8 {[%clk
0:00:53.8]} 39. Nf5+ {[%clk 0:01:04.9]} 39... Kf6 {[%clk 0:00:51.7]} 40. Rf1
{[%clk 0:00:56.3]} 40... Rd3 {[%clk 0:00:45]} 41. Ne3+ {[%clk 0:00:50.1]} 1-0

[Event "*** Titled Tuesday Blitz"]
[Site "Chess.com"]
[Date "2021.04.27"]
[Round "4"]
[White "Smile2005"]
[Black "Willychess95"]
[Result "1-0"]
[WhiteElo "2388"]
[BlackElo "2590"]
[TimeControl "180+1"]
[EndTime "10:38:17 PDT"]
[Termination "Smile2005 won by resignation"]

1. Nf3 {[%clk 0:03:00.2]} 1... c5 {[%clk 0:02:56.8]} 2. g3 {[%clk 0:03:01.1]}
2... Nc6 {[%clk 0:02:55.1]} 3. Bg2 {[%clk 0:03:02]} 3... g6 {[%clk 0:02:54.8]}
4. O-O {[%clk 0:03:02.9]} 4... Bg7 {[%clk 0:02:54.3]} 5. d3 {[%clk 0:03:03.8]}
5... d6 {[%clk 0:02:51.8]} 6. e4 {[%clk 0:03:04.5]} 6... e5 {[%clk 0:02:51.1]}
7. c3 {[%clk 0:03:03.6]} 7... Nge7 {[%clk 0:02:51]} 8. Na3 {[%clk 0:03:03]} 8...
O-O {[%clk 0:02:50.7]} 9. Nc2 {[%clk 0:03:01.8]} 9... f5 {[%clk 0:02:49.3]} 10.
exf5 {[%clk 0:03:01.7]} 10... Nxf5 {[%clk 0:02:44.8]} 11. Ne3 {[%clk 0:03:01.5]}
11... d5 {[%clk 0:02:38.5]} 12. Qb3 {[%clk 0:02:44.5]} 12... Nxe3 {[%clk
0:02:21.8]} 13. Bxe3 {[%clk 0:02:45.4]} 13... Qd6 {[%clk 0:01:50.2]} 14. Ng5
{[%clk 0:02:17.1]} 14... Rd8 {[%clk 0:01:31.6]} 15. Ne4 {[%clk 0:02:16.9]} 15...
c4 {[%clk 0:01:31.8]} 16. Nxd6 {[%clk 0:02:16.9]} 16... cxb3 {[%clk 0:01:31.7]}
17. Nxc8 {[%clk 0:02:16.9]} 17... Raxc8 {[%clk 0:01:10.4]} 18. axb3 {[%clk
0:02:16]} 18... a6 {[%clk 0:01:10.8]} 19. Bb6 {[%clk 0:02:01.3]} 19... Rd6
{[%clk 0:01:08.5]} 20. Bc5 {[%clk 0:01:17.7]} 20... Rdd8 {[%clk 0:01:06.7]} 21.
Bh3 {[%clk 0:01:17.7]} 21... Ra8 {[%clk 0:01:04.9]} 22. Bb6 {[%clk 0:01:13.3]}
22... Re8 {[%clk 0:01:00.5]} 23. Bd7 {[%clk 0:01:10.3]} 23... Re7 {[%clk
0:01:00.5]} 24. Bxc6 {[%clk 0:01:09.9]} 24... bxc6 {[%clk 0:01:01.4]} 25. Bc5
{[%clk 0:01:09.5]} 25... Rf7 {[%clk 0:00:56.3]} 26. Ra5 {[%clk 0:01:08.6]} 26...
Rf3 {[%clk 0:00:48.2]} 27. Rfa1 {[%clk 0:01:06.7]} 27... Rxd3 {[%clk 0:00:46.5]}
28. Rxa6 {[%clk 0:01:06.8]} 28... Rxa6 {[%clk 0:00:47.1]} 29. Rxa6 {[%clk
0:01:07.7]} 29... Rd2 {[%clk 0:00:43.7]} 30. Rxc6 {[%clk 0:00:56.9]} 30... Rxb2
{[%clk 0:00:42.8]} 31. b4 {[%clk 0:00:57]} 31... d4 {[%clk 0:00:42.8]} 32. cxd4
{[%clk 0:00:54.5]} 32... exd4 {[%clk 0:00:43.7]} 33. Rc8+ {[%clk 0:00:54.4]}
33... Kf7 {[%clk 0:00:43.3]} 34. Rc7+ {[%clk 0:00:54.5]} 34... Kg8 {[%clk
0:00:43.1]} 35. Rxg7+ {[%clk 0:00:53.2]} 1-0

[Event "*** Titled Tuesday Blitz"]
[Site "Chess.com"]
[Date "2021.04.27"]
[Round "4"]
[White "jefferyx"]
[Black "nrvignesh"]
[Result "1-0"]
[WhiteElo "2996"]
[BlackElo "2788"]
[TimeControl "180+1"]
[EndTime "10:38:26 PDT"]
[Termination "jefferyx won by resignation"]

1. e4 {[%clk 0:03:00.9]} 1... e5 {[%clk 0:02:58]} 2. Nf3 {[%clk 0:03:01]} 2...
Nc6 {[%clk 0:02:58.2]} 3. Nc3 {[%clk 0:03:01]} 3... Nf6 {[%clk 0:02:56]} 4. d4
{[%clk 0:03:01.4]} 4... exd4 {[%clk 0:02:55.6]} 5. Nxd4 {[%clk 0:03:02.3]} 5...
Bb4 {[%clk 0:02:50.2]} 6. Nxc6 {[%clk 0:03:01.7]} 6... bxc6 {[%clk 0:02:51.1]}
7. Bd3 {[%clk 0:03:02]} 7... d5 {[%clk 0:02:51.3]} 8. exd5 {[%clk 0:03:02.9]}
8... Qe7+ {[%clk 0:02:50.4]} 9. Qe2 {[%clk 0:02:43.1]} 9... Nxd5 {[%clk
0:02:49.2]} 10. Qxe7+ {[%clk 0:02:38]} 10... Kxe7 {[%clk 0:02:48.4]} 11. a3
{[%clk 0:02:25.8]} 11... Bxc3+ {[%clk 0:02:10.6]} 12. bxc3 {[%clk 0:02:22.7]}
12... Be6 {[%clk 0:02:04.4]} 13. Bd2 {[%clk 0:02:18.5]} 13... Rhd8 {[%clk
0:02:02.6]} 14. O-O {[%clk 0:02:16.2]} 14... Rab8 {[%clk 0:01:58.8]} 15. c4
{[%clk 0:02:12.3]} 15... Nb6 {[%clk 0:01:53.8]} 16. Bb4+ {[%clk 0:02:12]} 16...
Ke8 {[%clk 0:01:38.7]} 17. Rfe1 {[%clk 0:02:10.4]} 17... Na4 {[%clk 0:01:29.2]}
18. f4 {[%clk 0:02:06.9]} 18... c5 {[%clk 0:01:24.8]} 19. Ba5 {[%clk 0:02:05.9]}
19... g6 {[%clk 0:00:49]} 20. Bxc7 {[%clk 0:02:02.3]} 20... Nb6 {[%clk
0:00:48.3]} 21. f5 {[%clk 0:01:59.7]} 21... gxf5 {[%clk 0:00:46.9]} 22. Bxf5
{[%clk 0:02:00.6]} 22... Kd7 {[%clk 0:00:46]} 23. Bxb8 {[%clk 0:01:52.4]} 23...
Bxf5 {[%clk 0:00:45.7]} 24. Rad1+ {[%clk 0:01:52.4]} 24... Kc8 {[%clk
0:00:43.9]} 25. Rxd8+ {[%clk 0:01:53.3]} 25... Kxd8 {[%clk 0:00:44.2]} 26. Bxa7
{[%clk 0:01:54.2]} 26... Nxc4 {[%clk 0:00:44.2]} 27. Bxc5 {[%clk 0:01:53.1]}
27... Bxc2 {[%clk 0:00:43.9]} 28. Rc1 {[%clk 0:01:52.5]} 28... Bb3 {[%clk
0:00:42.8]} 29. Rc3 {[%clk 0:01:52.2]} 29... Ba2 {[%clk 0:00:41.5]} 30. Kf2
{[%clk 0:01:43.8]} 30... Kd7 {[%clk 0:00:41.5]} 31. Ke2 {[%clk 0:01:41.4]} 31...
Kc6 {[%clk 0:00:41.5]} 32. Bb4 {[%clk 0:01:39.5]} 32... Kd5 {[%clk 0:00:41.5]}
33. Rh3 {[%clk 0:01:38.5]} 33... Bb1 {[%clk 0:00:40.7]} 34. a4 {[%clk
0:01:35.8]} 34... Ne5 {[%clk 0:00:36.8]} 35. a5 {[%clk 0:01:32.2]} 35... Nc6
{[%clk 0:00:34.7]} 36. Bc3 {[%clk 0:01:28.9]} 36... Kc4 {[%clk 0:00:33.4]} 37.
Kd2 {[%clk 0:01:28.4]} 37... Kb5 {[%clk 0:00:31.1]} 38. Rh5+ {[%clk 0:01:28]}
38... Ka6 {[%clk 0:00:31.3]} 39. Ke3 {[%clk 0:01:25]} 39... Bg6 {[%clk
0:00:29.9]} 40. Rc5 {[%clk 0:01:24.3]} 40... Na7 {[%clk 0:00:28.8]} 41. Bd2
{[%clk 0:01:19.6]} 41... h5 {[%clk 0:00:25.7]} 42. Kf4 {[%clk 0:01:19.6]} 42...
Nb5 {[%clk 0:00:25.4]} 43. Rc6+ {[%clk 0:01:17.8]} 43... Ka7 {[%clk 0:00:23.9]}
44. Be3+ {[%clk 0:01:17.9]} 44... Ka8 {[%clk 0:00:22.5]} 45. a6 {[%clk
0:01:17.6]} 1-0